bitfinex/quotes_SOLUSD_20241122
["timestamp","ask_amount","ask_price","bid_price","bid_amount"]
[1732249094849,0.20970346,261.28,261.23,20.0]
[1732249095245,0.20970346,261.28,261.23,5.23792029]
[1732249095553,16.37750346,261.3,261.24,20.0]
[1732249095759,16.1678,261.3,261.25,5.23792029]
[1732249095928,0.20970346,261.33,261.26,20.0]
[1732249096546,0.20970346,261.33,261.26,5.23792029]
[1732249096735,0.20970346,261.33,261.27,25.23792029]
[1732249096933,0.20970346,261.35,261.27,25.23792029]
[1732249097552,23.98658746,261.35,261.27,25.23792029]
[1732249097929,0.20970346,261.35,261.27,25.23792029]
[1732249098190,0.20970346,261.36,261.27,25.23792029]
[1732249098761,23.88058236,261.34,261.27,5.23792029]
[1732249098950,23.776884,261.31,261.21,20.0]
[1732249099152,0.20970346,261.3,261.22,5.45458696]
[1732249101249,0.20970346,261.3,261.23,20.0]
[1732249101456,0.20970346,261.3,261.24,5.45458696]
[1732249101762,0.20970346,261.3,261.25,20.0]
[1732249102260,24.09028582,261.3,261.18,4.64394434]
[1732249102560,23.776884,261.29,261.18,4.64394434]
[1732249102863,23.776884,261.27,261.18,4.64394434]
[1732249103037,0.20970346,261.26,261.18,4.64394434]
[1732249104051,0.20970346,261.26,261.13,5.45458696]
[1732249104271,23.776884,261.25,261.13,5.45458696]
[1732249104557,0.20970346,261.24,261.13,5.45458696]
[1732249105058,23.98658746,261.25,261.14,4.64394434]
[1732249105264,23.98658746,261.27,261.15,5.45458696]
[1732249105441,23.98658746,261.27,261.16,24.64394434]
[1732249105645,23.776884,261.27,261.17,5.45458696]
[1732249105882,23.776884,261.27,261.18,4.64394434]
[1732249106040,23.776884,261.27,261.18,10.0985313]
[1732249106240,0.20970346,261.26,261.18,10.0985313]
[1732249106641,0.20970346,261.26,261.19,20.0]
[1732249107667,0.20970346,261.33,261.19,30.97424434]
[1732249107876,0.20970346,261.33,261.2,10.0985313]
[1732249108181,0.20970346,261.36,261.21,20.0]
[1732249108373,0.20970346,261.36,261.22,10.0985313]
[1732249108673,0.20970346,261.36,261.23,20.0]
[1732249108846,0.20970346,261.36,261.24,5.45458696]
[1732249109043,0.20970346,261.37,261.25,20.0]
[1732249109246,23.776884,261.36,261.25,20.0]
[1732249109467,0.20970346,261.35,261.25,20.0]
[1732249109682,0.20970346,261.35,261.27,20.0]
[1732249109855,0.20970346,261.38,261.28,5.45458696]
[1732249110268,23.88058236,261.41,261.28,5.45458696]
[1732249110269,0.20970346,261.4,261.28,5.45458696]
[1732249110469,0.20970346,261.4,261.29,20.0]
[1732249110678,0.20970346,261.4,261.3,5.45458696]
[1732249111265,0.20970346,261.4,261.31,20.0]
[1732249111451,0.20970346,261.4,261.32,5.45458696]
[1732249111856,23.776884,261.38,261.25,4.64394434]
[1732249112164,23.776884,261.36,261.23,20.0]
[1732249112360,23.776884,261.34,261.23,20.0]
[1732249112672,0.20970346,261.33,261.23,20.0]
[1732249114174,0.20970346,261.33,261.23,24.64394434]
[1732249114356,0.20970346,261.33,261.23,20.0]
[1732249114558,0.20970346,261.33,261.24,4.64394434]
[1732249115762,23.98658746,261.35,261.23,5.45458696]
[1732249115963,50.36716982,261.35,261.23,5.45458696]
[1732249117059,50.36716982,261.35,261.24,20.0]
[1732249117264,47.86716982,261.35,261.24,20.0]
[1732249118187,0.20970346,261.35,261.24,24.64394434]
[1732249118369,0.20970346,261.35,261.25,24.64394434]
[1732249118570,23.88058236,261.4,261.25,24.64394434]
[1732249118571,0.20970346,261.39,261.25,24.64394434]
[1732249119560,14.814225,261.39,261.25,24.64394434]
[1732249119759,23.98658746,261.38,261.25,24.64394434]
[1732249119978,23.776884,261.36,261.25,24.64394434]
[1732249120182,23.776884,261.36,261.2,20.0]
[1732249120183,23.776884,261.34,261.2,20.0]
[1732249120489,23.776884,261.32,261.2,20.0]
[1732249120783,15.02392846,261.31,261.17,24.64394434]
[1732249120965,38.591109,261.29,261.14,20.0]
[1732249121169,23.776884,261.26,261.11,4.55005546]
[1732249121489,23.776884,261.24,261.11,4.55005546]
[1732249121663,0.20970346,261.23,261.11,4.55005546]
[1732249121864,20.60524546,261.24,261.11,4.55005546]
[1732249122180,14.814225,261.23,261.11,4.55005546]
[1732249122572,2.5,261.26,261.11,4.55005546]
[1732249122771,14.814225,261.23,261.11,4.55005546]
[1732249123489,5.0,261.26,261.08,23.822]
[1732249123490,2.5,261.24,261.08,23.822]
[1732249124074,23.776884,261.23,261.08,23.822]
[1732249124276,38.591109,261.23,261.08,23.822]
[1732249124678,47.50844697,261.23,261.08,20.0]
[1732249124965,23.776884,261.21,261.08,20.0]
[1732249125170,2.5,261.2,261.05,4.39116657]
[1732249125366,23.776884,261.19,261.05,4.39116657]
[1732249127187,23.776884,261.2,261.05,9.84575353]
[1732249127394,23.776884,261.2,261.06,5.45458696]
[1732249127692,23.776884,261.2,261.07,24.39116657]
[1732249127890,23.776884,261.22,261.07,24.39116657]
[1732249128092,23.776884,261.24,261.07,24.39116657]
[1732249128397,23.776884,261.22,261.07,24.39116657]
[1732249129187,23.776884,261.2,261.07,24.39116657]
[1732249129492,23.776884,261.2,261.07,20.0]
[1732249129783,23.776884,261.16,261.02,20.0]
[1732249130160,23.776884,261.16,261.02,24.39116657]
[1732249134272,2.5,261.21,261.03,29.84575353]
[1732249134586,39.25296297,261.23,261.03,29.84575353]
[1732249134963,41.75296297,261.23,261.03,29.84575353]
[1732249135185,2.5,261.21,261.03,29.84575353]
[1732249135483,23.776884,261.2,261.03,29.84575353]
[1732249135729,26.276884,261.2,261.03,29.84575353]
[1732249136072,23.776884,261.18,261.03,29.84575353]
[1732249136590,23.73156297,261.19,261.03,29.84575353]
[1732249136591,23.776884,261.19,261.03,29.84575353]
[1732249136973,23.776884,261.2,261.03,29.84575353]
[1732249137378,23.776884,261.22,261.03,29.84575353]
[1732249140870,15.5214,261.29,261.07,20.0]
[1732249141097,15.5214,261.29,261.08,9.84575353]
[1732249141391,15.5214,261.29,261.09,20.0]
[1732249141604,15.5214,261.29,261.1,9.84575353]
[1732249141776,23.73156297,261.25,261.11,20.0]
[1732249142696,23.73156297,261.25,261.1,4.39116657]
[1732249142902,23.776884,261.24,261.1,4.39116657]
[1732249143496,23.776884,261.26,261.1,9.84575353]
[1732249143698,23.776884,261.26,261.11,20.0]
[1732249143873,23.776884,261.28,261.11,5.45458696]
[1732249144070,39.25296297,261.29,261.11,9.84575353]
[1732249144274,2.5,261.35,261.12,20.0]
[1732249144275,23.73156297,261.31,261.12,20.0]
[1732249144498,23.73156297,261.31,261.14,20.0]
[1732249144699,23.73156297,261.29,261.16,20.0]
[1732249145279,23.776884,261.28,261.16,20.0]
[1732249145487,23.73156297,261.31,261.17,6.3619]
[1732249145690,23.73156297,261.31,261.18,20.0]
[1732249146001,23.73156297,261.33,261.18,20.0]
[1732249146579,15.5214,261.35,261.2,20.0]
[1732249146781,14.82191472,261.32,261.2,20.0]
[1732249146977,14.82191472,261.3,261.2,20.0]
[1732249147281,14.82191472,261.3,261.18,15.27]
[1732249147282,17.32191472,261.3,261.18,20.0]
[1732249147496,23.776884,261.29,261.18,20.0]
[1732249149204,14.82191472,261.32,261.18,20.0]
[1732249149505,14.82191472,261.34,261.18,29.84575353]
[1732249149705,14.82191472,261.34,261.2,20.0]
[1732249149998,22.38447261,261.36,261.22,20.0]
[1732249150200,14.82191472,261.36,261.22,25.45458696]
[1732249150608,23.776884,261.35,261.22,25.45458696]
[1732249151476,14.82191472,261.36,261.22,25.45458696]
[1732249152907,7.48985931,261.37,261.22,25.45458696]
[1732249153089,14.82191472,261.4,261.22,25.45458696]
[1732249154197,14.82191472,261.4,261.24,20.0]
[1732249154536,7.54964238,261.41,261.24,20.0]
[1732249154688,7.54964238,261.41,261.24,24.39116657]
[1732249155014,22.19874215,261.42,261.25,4.39116657]
[1732249155313,14.82191472,261.4,261.25,4.39116657]
[1732249155492,23.776884,261.39,261.24,20.0]
[1732249156391,23.776884,261.41,261.24,24.39116657]
[1732249156603,23.776884,261.41,261.25,4.39116657]
[1732249157110,23.776884,261.37,261.24,20.0]
[1732249159613,23.776884,261.37,261.23,22.4031]
[1732249159614,14.82191472,261.3,261.23,22.4031]
[1732249159824,23.776884,261.29,261.23,22.4031]
[1732249160396,23.776884,261.31,261.23,6.5011]
[1732249161504,23.776884,261.34,261.23,6.5011]
[1732249161719,23.776884,261.32,261.23,6.5011]
[1732249162212,14.82191472,261.31,261.23,6.5011]
[1732249162517,23.776884,261.3,261.23,6.5011]
[1732249162712,14.82191472,261.29,261.23,6.5011]
[1732249163108,23.776884,261.28,261.23,6.5011]
[1732249163303,23.776884,261.28,261.17,15.902]
[1732249163304,14.82191472,261.27,261.18,20.0]
[1732249163622,14.82191472,261.27,261.17,15.902]
[1732249163623,23.776884,261.26,261.17,15.902]
[1732249163917,23.776884,261.24,261.16,6.5011]
[1732249166097,14.82191472,261.31,261.17,20.0]
[1732249167395,23.776884,261.3,261.17,20.0]
[1732249168617,23.776884,261.3,261.17,25.45458696]
[1732249169421,14.82191472,261.29,261.17,25.45458696]
[1732249169632,14.82191472,261.27,261.17,20.0]
[1732249169839,2.5,261.48,261.22,21.8125]
[1732249170138,2.5,261.48,261.25,20.0]
[1732249170313,2.5,261.48,261.27,20.0]
[1732249170514,2.5,261.48,261.29,20.0]
[1732249170718,17.32191472,261.48,261.31,20.0]
[1732249170920,17.32191472,261.48,261.31,30.52913124]
[1732249171229,17.32191472,261.48,261.33,20.0]
[1732249171539,14.82191472,261.44,261.33,20.0]
[1732249172126,23.776884,261.43,261.33,25.07454428]
[1732249173040,23.776884,261.45,261.33,25.07454428]
[1732249173329,23.776884,261.45,261.34,10.52913124]
[1732249174433,14.82191472,261.44,261.34,10.52913124]
[1732249174733,23.776884,261.43,261.34,10.52913124]
[1732249174934,14.82191472,261.35,261.22,15.593]
[1732249175111,14.82191472,261.27,261.16,6.2195]
[1732249175311,23.776884,261.26,261.16,6.2195]
[1732249175647,23.776884,261.24,261.16,6.2195]
[1732249175931,14.82191472,261.23,261.16,6.2195]
[1732249176142,14.82191472,261.19,261.09,21.8125]
[1732249176519,14.82191472,261.25,261.09,21.8125]
[1732249176840,47.5032001,261.26,261.09,21.8125]
[1732249177218,7.5038825,261.28,261.09,26.13225425]
[1732249177219,23.776884,261.27,261.09,26.13225425]
[1732249177425,23.776884,261.29,261.1,4.31975425]
[1732249177936,23.7263161,261.3,261.11,23.776884]
[1732249178122,23.7263161,261.36,261.13,26.276884]
[1732249178323,23.7263161,261.38,261.15,43.776884]
[1732249178531,23.7263161,261.42,261.18,6.2195]
[1732249178727,23.7263161,261.42,261.22,23.776884]
[1732249179026,23.7263161,261.42,261.23,24.31975425]
[1732249179823,23.7263161,261.4,261.23,24.31975425]
[1732249180049,23.7263161,261.38,261.23,4.31975425]
[1732249180336,23.7263161,261.26,261.18,6.2195]
[1732249181240,23.7263161,261.32,261.18,6.2195]
[1732249181453,47.5032001,261.34,261.19,20.0]
[1732249181630,23.7263161,261.3,261.18,10.80647647]
[1732249181826,23.7263161,261.28,261.18,6.2195]
[1732249182742,23.7263161,261.3,261.19,20.0]
[1732249182934,23.776884,261.29,261.19,20.0]
[1732249186124,23.776884,261.33,261.19,20.0]
[1732249187126,23.7263161,261.32,261.19,20.0]
[1732249187728,2.5,261.39,261.19,20.0]
[1732249187729,23.7263161,261.37,261.19,20.0]
[1732249187941,23.7263161,261.37,261.2,4.58697647]
[1732249188448,23.7263161,261.39,261.2,4.58697647]
[1732249189246,23.7263161,261.39,261.21,20.0]
[1732249189423,23.7263161,261.39,261.22,4.83975425]
[1732249189624,23.7263161,261.39,261.22,24.83975425]
[1732249190040,23.776884,261.38,261.22,24.83975425]
[1732249190751,23.7263161,261.37,261.22,4.83975425]
[1732249191046,23.7263161,261.33,261.19,20.0]
[1732249191439,23.7263161,261.35,261.19,24.83975425]
[1732249191745,23.7263161,261.37,261.19,24.83975425]
[1732249191930,23.776884,261.38,261.2,4.83975425]
[1732249192134,30.92656706,261.43,261.22,20.0]
[1732249192344,23.7263161,261.39,261.23,4.83975425]
[1732249193054,23.7263161,261.37,261.23,4.83975425]
[1732249193453,23.776884,261.36,261.23,4.83975425]
[1732249193833,23.776884,261.36,261.18,6.2195]
[1732249193834,23.7263161,261.33,261.18,6.2195]
[1732249194035,23.7263161,261.33,261.03,3.817]
[1732249194036,23.776884,261.18,261.12,4.83975425]
[1732249194248,23.776884,261.18,261.05,6.6006]
[1732249194249,23.7263161,261.15,261.05,6.6006]
[1732249194641,23.7263161,261.13,261.05,6.6006]
[1732249195157,23.7263161,261.16,261.05,6.6006]
[1732249195359,23.776884,261.18,261.06,20.0]
[1732249195360,47.5032001,261.18,261.06,20.0]
[1732249195564,23.7263161,261.18,261.06,20.0]
[1732249196140,23.7263161,261.2,261.06,20.0]
[1732249197363,23.7263161,261.18,261.06,20.0]
[1732249198856,2.5,261.39,261.06,20.57447687]
[1732249199035,23.7263161,261.26,261.08,20.0]
[1732249199642,23.7263161,261.24,261.08,20.0]
[1732249200876,23.7263161,261.26,261.14,20.0]
[1732249201242,23.7263161,261.28,261.14,20.0]
[1732249201463,23.7263161,261.32,261.18,20.0]
[1732249201649,23.7263161,261.34,261.19,30.377484]
[1732249201852,15.5698,261.42,261.19,30.377484]
[1732249201853,23.7263161,261.36,261.19,30.377484]
[1732249202049,23.7263161,261.33,261.19,6.6006]
[1732249202250,23.7263161,261.33,261.2,20.0]
[1732249205467,23.7263161,261.29,261.19,6.6006]
[1732249206667,23.7263161,261.35,261.2,20.0]
[1732249207857,23.7263161,261.38,261.2,20.0]
[1732249208675,23.7263161,261.36,261.2,20.0]
[1732249210832,6.0813,261.46,261.13,15.3476]
[1732249210833,21.46976551,261.67,261.4,23.776884]
[1732249210952,26.54028603,261.66,261.41,26.31825172]
[1732249211150,2.81396993,261.65,261.42,23.776884]
[1732249211377,2.81396993,261.65,261.45,20.0]
[1732249211548,23.7263161,261.68,261.47,20.0]
[1732249211749,15.268405,261.71,261.48,40.95346282]
[1732249211951,23.7263161,261.72,261.48,40.95346282]
[1732249212165,23.7263161,261.72,261.49,20.0]
[1732249212369,23.7263161,261.67,261.51,20.0]
[1732249212572,23.7263161,261.65,261.53,20.0]
[1732249212951,23.7263161,261.6,261.46,6.6006]
[1732249213282,23.7263161,261.62,261.47,20.0]
[1732249213852,23.776884,261.61,261.47,20.0]
[1732249214472,2.5,261.71,261.47,26.31825172]
[1732249214473,23.776884,261.63,261.47,26.31825172]
[1732249214695,23.7263161,261.64,261.47,26.31825172]
[1732249215777,23.7263161,261.62,261.47,20.0]
[1732249216004,23.776884,261.61,261.47,20.0]
[1732249217188,23.7263161,261.59,261.47,20.0]
[1732249217372,23.776884,261.58,261.47,20.0]
[1732249217696,23.776884,261.56,261.46,6.6006]
[1732249217883,23.776884,261.54,261.46,6.6006]
[1732249218389,23.776884,261.54,261.37,6.4726]
[1732249219098,23.776884,261.54,261.38,20.0]
[1732249219468,23.776884,261.55,261.38,20.0]
[1732249219671,23.776884,261.51,261.37,6.4726]
[1732249220308,23.776884,261.53,261.37,6.4726]
[1732249220998,23.776884,261.55,261.37,6.4726]
[1732249221305,23.776884,261.55,261.38,20.0]
[1732249222395,23.7263161,261.62,261.4,20.0]
[1732249222577,23.7263161,261.62,261.4,26.17165553]
[1732249222782,23.7263161,261.62,261.41,5.9340295]
[1732249222973,7.47699086,261.66,261.42,20.0]
[1732249222974,23.7263161,261.66,261.42,20.0]
[1732249223175,23.7263161,261.66,261.44,20.0]
[1732249223383,23.7263161,261.66,261.45,12.10568503]
[1732249223693,23.7263161,261.66,261.46,20.0]
[1732249223877,23.7263161,261.66,261.46,32.10568503]
[1732249224271,23.7263161,261.66,261.48,20.0]
[1732249224995,23.7263161,261.7,261.5,43.776884]
[1732249225177,23.7263161,261.7,261.52,20.0]
[1732249225499,23.7263161,261.72,261.52,35.3078]
[1732249226287,23.7263161,261.72,261.53,6.17165553]
[1732249226489,23.776884,261.71,261.53,6.17165553]
[1732249226795,23.776884,261.67,261.54,20.0]
[1732249227096,23.776884,261.65,261.52,15.3078]
[1732249227685,23.776884,261.67,261.52,15.3078]
[1732249228202,22.3085,261.75,261.52,15.3078]
[1732249228203,23.776884,261.65,261.52,15.3078]
[1732249228587,23.776884,261.65,261.53,20.0]
[1732249229402,23.776884,261.67,261.53,26.17165553]
[1732249229695,23.776884,261.67,261.54,6.17165553]
[1732249230601,24.8085,261.75,261.54,6.17165553]
[1732249230602,23.7263161,261.7,261.55,20.0]
[1732249230808,23.7263161,261.72,261.55,26.17165553]
[1732249230976,23.7263161,261.72,261.56,6.17165553]
[1732249231180,23.7263161,261.72,261.57,20.0]
[1732249231382,23.7263161,261.72,261.58,6.17165553]
[1732249231790,23.7263161,261.72,261.59,20.0]
[1732249231994,23.7263161,261.74,261.6,6.17165553]
[1732249232198,23.7263161,261.74,261.61,20.0]
[1732249232905,23.7263161,261.78,261.62,6.2703]
[1732249233101,23.7263161,261.78,261.63,20.0]
[1732249233683,7.3794356,261.81,261.63,20.0]
[1732249233684,23.7263161,261.85,261.65,20.0]
[1732249233884,23.7263161,261.85,261.66,6.05688892]
[1732249234100,23.7263161,261.83,261.67,20.0]
[1732249234681,2.5,261.87,261.67,6.05688892]
[1732249234882,23.7263161,261.81,261.64,27.82291842]
[1732249235082,23.7263161,261.79,261.64,27.82291842]
[1732249235307,23.776884,261.78,261.64,21.7660295]
[1732249235486,23.776884,261.76,261.64,15.832]
[1732249236702,15.255948,261.92,261.68,20.0]
[1732249236888,7.31879462,261.92,261.69,3.817]
[1732249237079,23.7263161,261.89,261.7,20.0]
[1732249237285,23.7263161,261.85,261.71,6.05688892]
[1732249237790,23.7263161,261.85,261.69,5.9340295]
[1732249238010,23.7263161,261.83,261.67,6.2703]
[1732249238303,23.776884,261.67,261.4,2.5]
[1732249238604,23.776884,261.67,261.38,6.2703]
[1732249238605,23.7263161,261.57,261.38,6.2703]
[1732249238997,23.7263161,261.57,261.39,3.817]
[1732249239193,20.0,261.76,261.47,22.1023]
[1732249239420,20.0,261.82,261.48,3.07337242]
[1732249239608,23.7263161,261.79,261.56,6.2703]
[1732249239911,23.7263161,261.79,261.57,27.593884]
[1732249240290,23.7263161,261.79,261.59,23.776884]
[1732249240500,22.3167,262.1,261.78,6.2703]
[1732249240688,23.7263161,262.03,261.81,23.776884]
[1732249240883,23.7263161,262.03,261.83,23.776884]
[1732249241110,23.7263161,262.05,261.85,23.776884]
[1732249241413,23.7263161,262.05,261.86,26.3238317]
[1732249241591,28.2117043,262.21,261.86,26.3238317]
[1732249241592,7.54315506,262.22,262.01,5.0]
[1732249241790,23.62154519,262.47,262.09,5.0]
[1732249241791,23.7263161,262.41,262.09,5.0]
[1732249241987,23.7263161,262.41,262.14,23.776884]
[1732249242204,23.7263161,262.45,262.19,23.817]
[1732249242410,23.7263161,262.47,262.2,30.25960459]
[1732249242616,23.7263161,262.47,262.23,20.0]
[1732249242912,23.7263161,262.49,262.24,30.25960459]
[1732249243209,23.7263161,262.49,262.25,23.817]
[1732249243415,23.7263161,262.49,262.27,20.0]
[1732249243709,23.7263161,262.49,262.29,20.0]
[1732249243909,23.7263161,262.49,262.3,6.62716503]
[1732249244437,23.776884,262.48,262.3,6.62716503]
[1732249244717,38.21667004,262.46,262.3,6.62716503]
[1732249244915,38.21667004,262.48,262.3,6.62716503]
[1732249245096,38.21667004,262.44,262.18,6.425]
[1732249245295,38.21667004,262.42,262.2,20.0]
[1732249245599,38.21667004,262.42,262.22,20.0]
[1732249246004,38.21667004,262.44,262.22,20.0]
[1732249246207,38.21667004,262.49,262.23,6.62716503]
[1732249246397,20.0,262.48,262.23,3.817]
[1732249247099,20.0,262.48,262.23,9.79705392]
[1732249247315,20.0,262.48,262.24,5.98005392]
[1732249247497,20.0,262.45,262.23,3.817]
[1732249247694,20.0,262.58,262.29,5.0]
[1732249247911,38.21667004,262.46,262.3,2.5]
[1732249248115,38.21667004,262.48,262.34,2.5]
[1732249248395,38.21667004,262.48,262.32,2.5]
[1732249248396,38.21667004,262.48,262.32,5.0]
[1732249249004,38.21667004,262.48,262.23,3.817]
[1732249249005,38.21667004,262.48,262.3,5.0]
[1732249249206,38.21667004,262.46,262.3,2.5]
[1732249249417,23.776884,262.45,262.3,2.5]
[1732249249610,23.776884,262.45,262.32,2.5]
[1732249249815,20.0,262.47,262.33,2.5]
[1732249250519,38.21667004,262.51,262.35,5.0]
[1732249250708,38.21667004,262.53,262.35,5.0]
[1732249250909,23.776884,262.52,262.35,2.5]
[1732249251127,38.21667004,262.5,262.35,2.5]
[1732249251308,23.776884,262.49,262.35,2.5]
[1732249251624,23.776884,262.47,262.33,2.5]
[1732249251824,38.21667004,262.46,262.29,2.5]
[1732249252121,23.776884,262.39,262.22,2.5]
[1732249252307,20.0,262.38,262.22,2.5]
[1732249252516,23.776884,262.37,262.24,2.5]
[1732249253499,23.776884,262.37,262.22,2.5]
[1732249253715,23.776884,262.37,262.22,5.0]
[1732249253926,23.776884,262.41,262.24,5.0]
[1732249254217,23.776884,262.41,262.24,2.5]
[1732249254405,23.776884,262.42,262.24,2.5]
[1732249254609,23.776884,262.4,262.24,2.5]
[1732249255009,23.776884,262.4,262.19,20.0]
[1732249255010,38.21667004,262.37,262.21,2.5]
[1732249255320,23.776884,262.33,262.19,2.5]
[1732249255506,23.776884,262.33,262.18,6.425]
[1732249255507,38.21667004,262.32,262.18,6.425]
[1732249255841,7.27073718,262.5,262.3,2.5]
[1732249256022,38.21667004,262.5,262.3,2.5]
[1732249257024,38.21667004,262.48,262.3,2.5]
[1732249257217,38.21667004,262.4,262.26,2.5]
[1732249257532,38.21667004,262.4,262.28,2.5]
[1732249257533,23.776884,262.39,262.28,2.5]
[1732249257910,23.776884,262.41,262.26,2.5]
[1732249258925,23.776884,262.41,262.24,2.5]
[1732249259407,38.21667004,262.36,262.22,2.5]
[1732249259614,23.776884,262.35,262.2,2.5]
[1732249260223,58.21667004,262.34,262.18,8.925]
[1732249260407,23.776884,262.31,262.18,6.425]
[1732249261228,23.776884,262.29,262.18,6.425]
[1732249261727,23.776884,262.27,262.15,2.5]
[1732249261901,23.776884,262.27,262.13,2.5]
[1732249262229,23.776884,262.25,262.11,6.425]
[1732249262911,23.8101,262.46,262.18,2.5]
[1732249263117,20.0,262.35,262.18,2.5]
[1732249264521,20.0,262.33,262.18,2.5]
[1732249264812,23.776884,262.32,262.18,2.5]
[1732249266327,38.21667004,262.3,262.16,2.5]
[1732249266527,23.776884,262.29,262.16,2.5]
[1732249266712,23.54018517,262.31,262.16,2.5]
[1732249266919,43.776884,262.3,262.16,2.5]
[1732249267617,23.776884,262.26,262.13,2.5]
[1732249267816,23.776884,262.26,262.14,2.5]
[1732249268017,43.54018517,262.27,262.11,6.425]
[1732249268230,23.776884,262.26,262.11,6.425]
[1732249268435,23.776884,262.24,262.11,6.425]
[1732249269243,23.776884,262.18,262.11,6.425]
[1732249269438,23.776884,262.14,262.03,6.425]
[1732249269940,23.776884,262.16,262.03,6.425]
[1732249270131,43.776884,262.12,262.03,6.425]
[1732249270332,23.776884,262.08,262.03,6.425]
[1732249270531,23.776884,262.08,261.93,6.425]
[1732249270827,23.54018517,262.07,261.93,6.425]
[1732249271020,23.776884,262.06,261.93,6.425]
[1732249271634,23.776884,262.04,261.93,6.425]
[1732249271934,23.776884,262.04,261.93,8.925]
[1732249272235,43.54018517,262.14,261.98,5.0]
[1732249272421,23.776884,262.13,261.98,5.0]
[1732249272820,23.776884,262.11,261.96,2.5]
[1732249273033,43.54018517,262.12,262.0,2.5]
[1732249273244,23.54018517,262.14,262.0,2.5]
[1732249273451,23.54018517,262.34,262.03,2.5]
[1732249273452,3.8118,262.34,262.03,2.5]
[1732249273614,5.8363547,262.38,262.08,2.5]
[1732249273814,6.5,262.47,262.02,20.0]
[1732249273815,23.54018517,262.34,262.18,2.5]
[1732249274037,23.54018517,262.3,262.18,5.98005392]
[1732249274242,23.54018517,262.3,262.19,20.0]
[1732249274428,23.54018517,262.28,262.19,20.0]
[1732249274632,38.26058593,262.27,262.13,2.5]
[1732249274831,38.26058593,262.27,262.13,22.5]
[1732249275036,38.26058593,262.25,262.12,15.9166]
[1732249275230,38.26058593,262.21,262.09,2.5]
[1732249276140,38.26058593,262.34,262.04,15.9166]
[1732249276141,38.26058593,262.19,262.07,2.5]
[1732249276446,23.776884,262.18,262.07,2.5]
[1732249276626,23.776884,262.18,262.07,5.0]
[1732249277439,23.776884,262.18,262.05,25.0]
[1732249277631,23.776884,262.18,262.05,22.5]
[1732249277831,23.776884,262.18,262.05,20.0]
[1732249278031,38.26058593,262.13,261.97,5.0]
[1732249278235,38.26058593,262.11,261.97,5.0]
[1732249278534,23.776884,262.1,261.97,5.0]
[1732249278737,38.26058593,262.09,261.95,15.9166]
[1732249278928,23.776884,262.08,261.96,2.5]
[1732249279238,38.26058593,262.1,261.97,2.5]
[1732249279423,23.776884,262.09,261.97,2.5]
[1732249279623,23.776884,262.09,261.95,15.9166]
[1732249280743,23.776884,262.09,261.97,2.5]
[1732249281344,23.776884,262.09,261.95,18.4166]
[1732249281544,23.776884,262.09,261.98,2.5]
[1732249282046,38.26058593,262.14,262.01,8.9763]
[1732249282222,38.26058593,262.16,262.02,2.5]
[1732249282422,23.776884,262.15,262.02,2.5]
[1732249282842,38.26058593,262.12,262.01,6.4763]
[1732249283024,23.776884,262.09,262.01,6.4763]
[1732249283226,38.26058593,262.08,262.01,6.4763]
[1732249283549,23.776884,262.07,262.01,6.4763]
[1732249284543,23.776884,262.07,261.96,22.5]
[1732249284750,23.776884,262.07,261.93,6.4763]
[1732249284751,38.26058593,262.02,261.93,6.4763]
[1732249285046,23.776884,262.07,261.93,6.4763]
[1732249285351,38.26058593,262.02,261.93,6.4763]
[1732249285641,23.776884,262.01,261.93,6.4763]
[1732249287347,38.26058593,262.0,261.93,6.4763]
[1732249287522,23.776884,261.99,261.93,6.4763]
[1732249288048,23.776884,261.99,261.88,2.5]
[1732249288354,23.776884,261.99,261.88,5.0]
[1732249289038,23.776884,262.01,261.88,5.0]
[1732249289245,23.776884,262.01,261.91,2.5]